[Event "55th Biel Festival MTO 2022"]
[Site "Biel"]
[Date "2022.07.18"]
[Round "5.8"]
[White "Lagarde Maxime"]
[Black "Muradli Mahammad"]
[Result "1/2-1/2"]
[ECO "B67"]
[WhiteElo "2631"]
[BlackElo "2523"]
[Annotator "TA"]
[PlyCount "57"]
[EventDate "2022.07.13"]
[EventType "swiss"]
[EventCountry "SUI"]
[SourceTitle "playchess.com"]
[Source "ChessBase"]
[SourceQuality "1"]
[TimeControl "40/5400+30:1800+30"]

{[%evp 16,57,38,28,34,31,44,26,35,31,35,30,32,52,29,0,0,0,-4,-24,-25,-46,-26,-26,-28,-29,-33,-27,-35,-35,-23,-24,-31,-15,-18,-17,-17,-24,0,0,0,-29,0,0]} 1. e4 {[%emt 0:00:06]} c5 {[%emt 0:02:31]} 2. Nf3 {[%emt 0:00:05]} d6 {[%emt 0:00:23]} 3. d4 {[%emt 0:00:03]} cxd4 {[%emt 0:00:07]} 4. Nxd4 {[%emt 0:00:04]} Nf6 {[%emt 0:00:16]} 5. Nc3 {[%emt 0:00:06]} Nc6 {[%emt 0:00:12]} 6. Bg5 {[%emt 0:00:05]} e6 {[%emt 0:00:12]} 7. Qd2 {[%emt 0:00:16]} a6 {[%emt 0:00:07]} 8. O-O-O {[%emt 0:00:06]} Bd7 {[%emt 0:00:10]} 9. Kb1 {[%emt 0:00:09]} Nxd4 {[%emt 0:00:34] B67: Sicilian: Richter-Rauzer: 7...a6 8 0-0-0 Bd7, lines without 9 f4 Be7.} 10. Qxd4 {[%emt 0:00:04]} Be7 {[%emt 0:00:10]} 11. f4 {[%emt 0:01:24]} Bc6 {[%emt 0:00:17] White has an edge.} 12. f5 {[%emt 0:05:05] [#]} Qa5 $146 {[%emt 0:00:48]} ({Predecessor:} 12... h6 13. Bc1 e5 14. Qd3 b5 15. Qf3 Qc7 16. g4 Rc8 17. Bd3 Qb7 18. Qe2 Rb8 {0-1 (29) Malisauskas,V (2483)-Shengelia,D (2560) Novi Sad 2009}) 13. Bc4 {[%emt 0:01:55]} exf5 {[%emt 0:00:14]} 14. Rhf1 {[%emt 0:08:37]} fxe4 {[%emt 0:00:52]} 15. Bxf6 {[%emt 0:19:57]} (15. Nxe4 $5 Nxe4 16. Qxg7 $14) 15... Bxf6 {[%emt 0:01:25]} 16. Rxf6 {[%emt 0:00:37]} (16. Qxd6 Rd8 17. Qg3 Rxd1+ 18. Nxd1 Qd8 $15) 16... gxf6 {[%emt 0:00:19]} 17. Qxf6 {[%emt 0:01:29]} (17. Nxe4 O-O-O 18. Nxf6 Qe5 $17) 17... Qe5 $1 {[%emt 0:01:12]} 18. Qxf7+ {[%emt 0:02:59]} (18. Bxf7+ $2 Kf8 19. Qxe5 (19. Rxd6 $2 Qxf6 20. Rxf6 Ke7 $19) 19... dxe5 $19) 18... Kd8 {[%emt 0:00:08] Hoping for ...Rc8.} 19. Nd5 {[%emt 0:04:51]} Rc8 {[%emt 0:11:08] Prevents Qc7+. And now ...Bxd5 would win.} 20. Nf4 {[%emt 0:01:42] [#] White threatens Ne6+ and mate. Dancing on a razor blade.} Bd7 {[%emt 0:01:30][%cal Oc8c4] ...Rxc4! is the strong threat.} 21. Be6 {[%emt 0:03:08][%csl Ge6][%cal Rf7d7]} ({But not} 21. Ne6+ $2 Bxe6 22. Qxe6 (22. Bxe6 $2 Rc7 $19) 22... Qxe6 23. Bxe6 Rc7 $19) 21... Rc7 {[%emt 0:04:08]} 22. Rxd6 $1 {[%emt 0:00:45]} Qxd6 {[%emt 0:08:05][%cal Rd6d1]} 23. Qf6+ {[%emt 0:00:04]} Qe7 {[%emt 0:00:55]} 24. Qxh8+ {[%emt 0:00:05]} Qe8 {[%emt 0:01:06]} 25. Qe5 {[%emt 0:11:28]} Rc6 {[%emt 0:09:55][%cal Rd7e6]} 26. Qb8+ {[%emt 0:00:24]} Rc8 {[%emt 0:01:11]} (26... Ke7 $5 {[%cal Re8b8]} 27. Qxb7 Rxe6 28. Nxe6 Qh5 $11) 27. Qe5 {[%emt 0:12:20] [#] Black must now prevent Qa5+.} Rc6 {[%emt 0:02:07][%cal Rd7e6]} 28. Qb8+ {[%emt 0:11:18]} Rc8 {[%emt 0:00:14]} (28... Ke7 $5 {[%cal Re8b8]} 29. Qxb7 Rxe6 30. Nxe6 Kxe6 $11) 29. Qe5 $1 {[%emt 0:02:00] Weighted Error Value: White=0.02 (flawless) /Black=0.06 (flawless)} 1/2-1/2

[Event "55th Biel Festival MTO 2022"]
[Site "Biel"]
[Date "2022.07.18"]
[Round "5.9"]
[White "Iturrizaga Bonelli Eduardo"]
[Black "Mohammad Nubairshah Shaikh"]
[Result "1-0"]
[ECO "D15"]
[WhiteElo "2619"]
[BlackElo "2445"]
[Annotator "TA"]
[PlyCount "53"]
[EventDate "2022.07.13"]
[EventType "swiss"]
[EventCountry "SUI"]
[SourceTitle "playchess.com"]
[Source "ChessBase"]
[SourceQuality "1"]
[TimeControl "40/5400+30:1800+30"]

{[%evp 9,53,21,35,9,35,36,71,22,55,63,63,49,107,105,108,106,107,109,120,132,141,135,138,124,177,174,168,181,205,162,335,312,329,324,312,300,597,622,620,620,604,556,592,596,965,956]} 1. c4 {[%emt 0:04:16]} c6 {[%emt 0:05:35]} 2. Nf3 {[%emt 0:00:34]} d5 {[%emt 0:00:04]} 3. e3 {[%emt 0:01:02]} Nf6 {[%emt 0:00:04]} 4. Nc3 {[%emt 0:00:07]} a6 {[%emt 0:00:06]} 5. d4 {[%emt 0:00:41]} Bf5 {[%emt 0:00:35]} 6. Nh4 {[%emt 0:09:54] D15: Slav Defence: 4 Nc3 a6 and gambit lines after 4 Nc3 dxc4.} Be6 {[%emt 0:02:22]} 7. c5 {[%emt 0:05:32]} Nbd7 {[%emt 0:04:34] [#]} 8. Bd2 $146 {[%emt 0:05:12]} (8. Qc2 $16) ({Predecessor:} 8. Bd3 g6 9. O-O Bg7 10. Bd2 O-O 11. f4 Bg4 12. Nf3 e6 13. h3 Bf5 14. Be2 {0-1 (30) Shakespeare,J (1926)-Merry,A (2130) High Wycombe 2012}) 8... g5 {[%emt 0:08:13]} 9. Nf3 {[%emt 0:00:48]} g4 {[%emt 0:00:17]} 10. Nh4 {[%emt 0:09:50]} b5 {[%emt 0:01:22]} ({Black should try} 10... Ne4 $14) 11. Bd3 $16 {[%emt 0:00:33]} Bh6 {[%emt 0:02:21]} 12. b4 {[%emt 0:13:35] White is more active.} Bg5 {[%emt 0:07:49]} 13. Nf5 {[%emt 0:00:08]} Bxf5 {[%emt 0:00:45]} 14. Bxf5 {[%emt 0:00:05]} h5 {[%emt 0:00:04]} 15. a4 {[%emt 0:01:18]} e6 {[%emt 0:00:22]} 16. Bd3 {[%emt 0:00:16]} e5 {[%emt 0:01:19]} (16... Kf8 $16) 17. Bf5 $18 {[%emt 0:03:22]} (17. axb5 axb5 18. Rxa8 Qxa8 $16) 17... e4 {[%emt 0:09:57]} 18. O-O {[%emt 0:01:04]} Nf8 {[%emt 0:05:16]} 19. f3 {[%emt 0:10:12]} gxf3 {[%emt 0:05:52]} (19... exf3 {keeps fighting.} 20. gxf3 Ne6) 20. gxf3 {[%emt 0:00:06]} exf3 {[%emt 0:00:16]} 21. Qxf3 {[%emt 0:00:09]} Rg8 {[%emt 0:00:46]} 22. Kh1 {[%emt 0:00:08]} Ne6 $2 {[%emt 0:00:24]} (22... Ng6 23. Bc2 Nh4) 23. axb5 {[%emt 0:00:56] White is clearly winning.} axb5 {[%emt 0:00:17] [#]} 24. Rxa8 {[%emt 0:00:23]} Qxa8 {[%emt 0:00:03]} 25. Bxe6 {[%emt 0:00:11]} fxe6 {[%emt 0:00:07] [#]} 26. e4 $1 {[%emt 0:00:03][%cal Be3e4,Be4e5][%mdl 32] Strongly threatening Bxg5.} Bh4 {[%emt 0:10:35]} (26... Qd8 27. Bxg5) 27. e5 {[%emt 0:00:06] Black did not feel at home in the position after the opening.  Weighted Error Value: White=0.06 (flawless) /Black=0.45} 1-0

[Event "55th Biel Festival MTO 2022"]
[Site "Biel"]
[Date "2022.07.18"]
[Round "5.10"]
[White "Raja Harshit"]
[Black "Puranik Abhimanyu"]
[Result "1/2-1/2"]
[ECO "D36"]
[WhiteElo "2477"]
[BlackElo "2612"]
[Annotator "TA"]
[PlyCount "40"]
[EventDate "2022.07.13"]
[EventType "swiss"]
[EventCountry "SUI"]
[SourceTitle "playchess.com"]
[Source "ChessBase"]
[SourceQuality "1"]
[TimeControl "40/5400+30:1800+30"]

{[%evp 19,40,16,43,39,43,18,38,33,42,42,50,34,54,48,56,50,60,0,46,0,59,0,34]} 1. d4 {[%emt 0:00:15]} Nf6 {[%emt 0:00:26]} 2. c4 {[%emt 0:01:13]} e6 {[%emt 0:00:30]} 3. Nc3 {[%emt 0:00:30]} d5 {[%emt 0:00:40]} 4. cxd5 {[%emt 0:02:12]} exd5 {[%emt 0:00:09]} 5. Bg5 {[%emt 0:00:14]} c6 {[%emt 0:00:45]} 6. e3 {[%emt 0:00:48]} Be7 {[%emt 0:01:13]} 7. Qc2 {[%emt 0:03:23]} O-O {[%emt 0:02:27]} 8. Bd3 {[%emt 0:01:03]} Nbd7 {[%emt 0:02:19]} 9. Nf3 {[%emt 0:00:13]} h6 {[%emt 0:08:45]} 10. Bh4 {[%emt 0:00:07][%cal Bg5h4,Bh4g3,Bg3f4][%mdl 32]} Nb6 {[%emt 0:00:22]} 11. O-O {[%emt 0:08:26] D36: Queen's Gambit Declined: Exchange Variation: Main line (5 Bg5 c6 6 Qc2).} Be6 {[%emt 0:07:30] [#]} 12. Ne2 $146 {[%emt 0:06:06]} ({Predecessor:} 12. Bxf6 Bxf6 13. b4 Rc8 14. a4 Nd7 15. Rfc1 a5 16. bxa5 Qxa5 17. Bf5 Rfe8 18. Bxe6 Rxe6 19. Rab1 b6 20. h3 {½-½ (20) Varga,Z (2461)-Nomin Erdene,D (2434) Kecskemet 2015}) 12... Nfd7 {[%emt 0:02:15]} 13. Bg3 {[%emt 0:04:39] White is slightly better.} Bg4 {[%emt 0:02:19]} 14. Ne5 {[%emt 0:04:00]} Nxe5 {[%emt 0:00:06]} 15. dxe5 {[%emt 0:03:15]} Bxe2 {[%emt 0:02:10]} 16. Qxe2 {[%emt 0:00:35]} Bh4 {[%emt 0:00:29]} 17. Bf4 {[%emt 0:04:19]} Bg5 {[%emt 0:02:30]} 18. Bg3 {[%emt 0:02:52]} Bh4 {[%emt 0:03:01]} 19. Bf4 {[%emt 0:00:46]} Bg5 $1 {[%emt 0:03:33]} 20. Bg3 {[%emt 0:09:48]} Bh4 {[%emt 0:02:38] Weighted Error Value: White=0.19 (very precise) /Black=0.09 (flawless)} 1/2-1/2

[Event "55th Biel Festival MTO 2022"]
[Site "Biel"]
[Date "2022.07.18"]
[Round "5.11"]
[White "Huschenbeth Niclas"]
[Black "Panjwani Raja"]
[Result "1-0"]
[ECO "B32"]
[WhiteElo "2610"]
[BlackElo "2450"]
[Annotator "TA"]
[PlyCount "127"]
[EventDate "2022.07.13"]
[EventType "swiss"]
[EventCountry "SUI"]
[SourceTitle "playchess.com"]
[Source "ChessBase"]
[SourceQuality "1"]
[TimeControl "40/5400+30:1800+30"]

{[%evp 14,127,34,38,33,35,34,29,33,35,36,31,33,25,32,36,21,25,71,70,61,61,66,67,70,58,63,70,172,168,170,168,170,156,143,148,200,200,200,171,200,204,197,131,152,149,147,128,150,150,172,156,250,156,156,156,156,149,158,120,132,122,157,157,245,237,269,240,535,526,440,431,650,647,1139,1083,1275,1243,1023,889,2778,2389,12237,10086,5081,9768,6697,5202,29973,29972,29971,29967,29963,29964,29967,0,323,0,5820,1840,29963,29967,29966,29967,29969,29970,29974,29975,29976,29977,29977,29978,29978,29979,29978,29978]} 1. e4 {[%emt 0:00:05]} c5 {[%emt 0:00:11]} 2. Nf3 {[%emt 0:00:04][%cal Bg1f3,Bf3d4,Bd4b5,Bb5a3,Ba3c4,Bc4e3,Be3d5][%mdl 32]} Nc6 {[%emt 0:00:09]} 3. d4 {[%emt 0:00:05]} cxd4 {[%emt 0:00:09]} 4. Nxd4 {[%emt 0:00:05]} e5 {[%emt 0:00:10]} 5. Nb5 {[%emt 0:00:18]} d6 {[%emt 0:00:08]} 6. N1c3 {[%emt 0:01:37]} a6 {[%emt 0:00:11]} 7. Na3 {[%emt 0:00:04]} Be7 {[%emt 0:00:11]} 8. Nc4 {[%emt 0:03:37]} b5 {[%emt 0:00:30][%cal Bb7b5,Bb5b4][%mdl 32] B32: Sicilian: Löwenthal and Kalashnikov Variations.} 9. Ne3 {[%emt 0:00:10]} (9. Qd5 Bb7 10. Ne3 Nf6 $11) 9... Nf6 {[%emt 0:00:18]} 10. g3 {[%emt 0:08:34]} O-O {[%emt 0:00:19] White has an edge.} 11. Bg2 {[%emt 0:00:31]} b4 {[%emt 0:00:20]} 12. Ncd5 {[%emt 0:01:04]} Nxd5 {[%emt 0:00:12]} 13. Nxd5 {[%emt 0:00:56]} Bg5 {[%emt 0:00:09]} 14. Bxg5 {[%emt 0:14:06]} Qxg5 {[%emt 0:00:10]} 15. a3 {[%emt 0:00:48]} Rb8 {[%emt 0:16:39]} (15... bxa3 $11 {feels stronger.} 16. Rxa3 (16. h4 Qd8 $11) 16... Rb8) 16. axb4 $1 $16 {[%emt 0:02:00]} Nxb4 {[%emt 0:06:32]} 17. Ne3 {[%emt 0:00:28] c3 is the strong threat.} Qd8 {[%emt 0:06:19]} 18. c3 {[%emt 0:11:09]} Nc6 {[%emt 0:00:32]} 19. b4 {[%emt 0:09:35][%cal Bb2b4,Bb4b5][%mdl 32]} (19. Qa4 $5 {[%cal Ra4c6]} Ne7 20. b4 $14) 19... a5 {[%emt 0:10:05]} 20. Qa4 $36 {[%emt 0:00:30][%csl LRa5,LRc6][%mdl 2048] [#] Black is under pressure. White is more active.} Bb7 $146 {[%emt 0:18:22]} (20... Qe8 $14) ({Predecessor:} 20... Qd7 21. b5 Nd8 22. Rb1 Nb7 23. O-O Qd8 24. Rfd1 Be6 25. b6 g6 26. f4 f6 27. f5 {½-½ (27) Zinchenko,Y (2516)-Fedorov,A (2603) Voronezh 2008}) 21. b5 $18 {[%emt 0:02:04]} (21. bxa5 $6 Nxa5 22. O-O (22. Qxa5 Ra8 $17) 22... Ra8 $14) 21... Ne7 {[%emt 0:00:35] [#]} 22. O-O $1 {[%emt 0:02:36]} ({Avoid the trap} 22. Qxa5 $2 Ra8 23. Qxa8 (23. Qxd8 $2 Rxa1+ 24. Kd2 Ra2+ 25. Kd3 Rxd8 $19) 23... Bxa8 $19) 22... f5 {[%emt 0:02:44]} 23. exf5 {[%emt 0:03:30]} Bxg2 {[%emt 0:01:54]} 24. Kxg2 {[%emt 0:00:08]} Qb6 {[%emt 0:02:44]} (24... d5 $16 {keeps fighting.}) 25. Qa2+ {[%emt 0:12:52]} ({Don't play} 25. Qxa5 $6 Qxb5 26. Qxb5 Rxb5 $16) 25... Kh8 {[%emt 0:00:40]} 26. Qxa5 {[%emt 0:07:36]} Qb7+ {[%emt 0:07:08] [#]} 27. Kg1 $1 {[%emt 0:00:05]} Nxf5 {[%emt 0:06:10]} 28. Qa6 {[%emt 0:06:34]} (28. Nxf5 $18 Rxf5 29. c4) 28... Nxe3 $16 {[%emt 0:07:54][%csl Ge3][%cal Rb7g2]} 29. Qxb7 {[%emt 0:00:05]} ({Worse is} 29. fxe3 Qe4 $11) 29... Rxb7 {[%emt 0:00:03]} 30. fxe3 {[%emt 0:00:04][%cal Rf1f8][%mdl 4096] Endgame KRR-KRR} Rc8 {[%emt 0:00:09]} 31. c4 {[%emt 0:00:28]} h6 {[%emt 0:00:17]} 32. Ra4 {[%emt 0:02:34]} Rbc7 {[%emt 0:07:09]} (32... d5 $16) 33. b6 {[%emt 0:01:05]} Rb7 {[%emt 0:00:06]} 34. Rb1 {[%emt 0:00:49]} Rc6 {[%emt 0:00:31]} 35. Rab4 {[%emt 0:01:40]} Kg8 {[%emt 0:02:33]} 36. Kf2 {[%emt 0:00:36]} Kf7 {[%emt 0:00:21]} 37. Kf3 {[%emt 0:03:27]} Ke6 {[%emt 0:00:22]} 38. g4 {[%emt 0:05:42]} Rc8 {[%emt 0:05:37]} (38... g5 $16 39. Ke4 Rc8) 39. Ra1 $18 {[%emt 0:00:56] Threatens to win with Ra7.} Rcb8 {[%emt 0:00:28]} 40. Ra6 {[%emt 0:01:14]} Kd7 $2 {[%emt 0:00:21]} (40... d5 {was necessary.} 41. c5 Kd7) 41. Ra7 {[%emt 0:09:48]} Kc6 {[%emt 0:02:42]} 42. Rxb7 {[%emt 0:01:54]} Kxb7 {[%emt 0:10:49] KR-KR} (42... Rxb7 $142 43. Ke4 Kc5) 43. Ke4 {[%emt 0:00:05] Strongly threatening Kd5.} Rf8 {[%emt 0:00:37]} 44. Kd5 {[%emt 0:01:39]} Rf6 {[%emt 0:00:06]} 45. h4 {[%emt 0:07:41]} Rg6 {[%emt 0:00:13]} 46. h5 {[%emt 0:00:15]} Rxg4 {[%emt 0:00:14]} 47. Kxd6 {[%emt 0:00:04] And now Kd5 would win.} g6 {[%emt 0:02:49]} 48. hxg6 {[%emt 0:06:56]} Rxg6+ {[%emt 0:00:06]} 49. Kxe5 {[%emt 0:00:36] c5 would kill now.} h5 {[%emt 0:00:32]} 50. c5 {[%emt 0:00:44] Intending Kd5 and mate.} Rg5+ {[%emt 0:02:46]} 51. Kd6 {[%emt 0:00:04]} Rg6+ {[%emt 0:00:08]} 52. Kd7 {[%emt 0:00:52]} Rg7+ {[%emt 0:02:01]} 53. Ke6 {[%emt 0:00:05]} Rg8 {[%emt 0:01:37]} 54. Kd7 $2 {[%emt 0:02:54]} (54. e4 {mates} Rc8 55. Kd5 Rd8+ 56. Kc4 Kc6 57. e5 h4 58. e6 h3 59. e7) 54... Rg7+ {[%emt 0:00:11]} 55. Kd6 $2 {[%emt 0:02:37]} (55. Kd8) 55... Rg6+ {[%emt 0:00:08]} 56. Ke7 {[%emt 0:00:03]} (56. Kd5 $142 Rg5+ 57. Kd4) 56... Rh6 {[%emt 0:03:00]} 57. Rh4 {[%emt 0:00:35] White mates.} Kc6 {[%emt 0:00:12]} 58. e4 {[%emt 0:01:15][%cal Be3e4,Be4e5,Be5e6][%mdl 32]} Kxc5 {[%emt 0:01:34]} 59. b7 {[%emt 0:00:49]} Rb6 {[%emt 0:02:05]} 60. Rxh5+ {[%emt 0:00:15]} Kc4 {[%emt 0:00:20]} 61. e5 {[%emt 0:00:50]} Rxb7+ {[%emt 0:00:34]} 62. Kf6 {[%emt 0:00:36]} Kd5 {[%emt 0:01:51]} 63. e6+ {[%emt 0:00:16]} Kd6 {[%emt 0:00:04]} 64. Rh8 {[%emt 0:00:36] Weighted Error Value: White=0.30/Black=0.50} 1-0

[Event "55th Biel Festival MTO 2022"]
[Site "Biel"]
[Date "2022.07.18"]
[Round "5.12"]
[White "Shevchenko Kirill"]
[Black "Katz, Alexander"]
[Result "1/2-1/2"]
[ECO "B14"]
[WhiteElo "2654"]
[BlackElo "2402"]
[Annotator "TA"]
[PlyCount "33"]
[EventDate "2022.07.13"]
[EventType "swiss"]
[EventCountry "SUI"]
[SourceTitle "playchess.com"]
[Source "ChessBase"]
[SourceQuality "1"]
[TimeControl "40/5400+30:1800+30"]

{[%evp 17,33,0,0,0,0,7,25,-11,-15,-48,-35,-69,-68,-73,-78,-137,-112,-105]} 1. c4 {[%emt 0:00:03]} c6 {[%emt 0:00:44]} 2. e4 {[%emt 0:01:29]} d5 {[%emt 0:00:21]} 3. exd5 {[%emt 0:00:06]} cxd5 {[%emt 0:00:16]} 4. d4 {[%emt 0:00:03]} Nf6 {[%emt 0:00:11]} 5. Nc3 {[%emt 0:00:04]} e6 {[%emt 0:01:57]} 6. Nf3 {[%emt 0:00:05]} Nc6 {[%emt 0:00:08]} 7. cxd5 {[%emt 0:05:45]} Nxd5 {[%emt 0:01:29]} 8. Bd3 {[%emt 0:00:25]} Bb4 {[%emt 0:01:33][%cal Bf8b4,Bb4a5,Ba5b6][%mdl 32]} 9. Qc2 {[%emt 0:04:09]} Ba5 {[%emt 0:01:36]} 10. a3 {[%emt 0:06:32] B14: Caro-Kann: Panov-Botvinnik Attack with 5...e6 and 5...g6.} h6 $1 {[%emt 0:04:01][%mdl 4] Against Bg5 outshines the older 10...Nxc3.} 11. O-O {[%emt 0:02:36]} O-O {[%emt 0:02:05]} 12. Ne4 {[%emt 0:24:57] White has an edge.} Bb6 {[%emt 0:02:06]} 13. Nc5 {[%emt 0:14:53] [#]} Qc7 $146 {[%emt 0:02:14][%cal Oc6d4]} ({Predecessor:} 13... Qe7 14. Nb3 Rd8 15. Bd2 Bd7 16. Rfe1 Rac8 17. Qd1 Qf6 18. Re4 Nce7 19. Ne5 Nf5 {½-½ (32) Naiditsch,A (2663)-Doettling,F (2542) France 2007}) 14. Nb3 {[%emt 0:02:53]} a5 {[%emt 0:03:14]} 15. Be3 {[%emt 0:02:31] [#]} e5 $1 {[%emt 0:06:46]} 16. Bh7+ {[%emt 0:10:18]} Kh8 {[%emt 0:00:14] Hoping for ...f5.} 17. Be4 {[%emt 0:00:05] Weighted Error Value: White=0.22 (precise) /Black=0.01 (flawless)} 1/2-1/2

[Event "55th Biel Festival MTO 2022"]
[Site "Biel"]
[Date "2022.07.18"]
[Round "5.13"]
[White "Banusz Tamas"]
[Black "Materia, Marco"]
[Result "1-0"]
[ECO "D35"]
[WhiteElo "2611"]
[BlackElo "2409"]
[Annotator "TA"]
[PlyCount "75"]
[EventDate "2022.07.13"]
[EventType "swiss"]
[EventCountry "SUI"]
[SourceTitle "playchess.com"]
[Source "ChessBase"]
[SourceQuality "1"]
[TimeControl "40/5400+30:1800+30"]

{[%evp 27,75,26,41,44,100,106,100,92,100,68,81,76,68,68,67,74,69,64,75,75,110,110,110,101,127,123,143,136,338,342,342,332,377,358,302,279,407,390,396,391,1036,642,624,450,441,437,419,419,417,414]} 1. d4 {[%emt 0:00:57]} Nf6 {[%emt 0:00:04]} 2. c4 {[%emt 0:00:07]} e6 {[%emt 0:00:03]} 3. Bf4 {[%emt 0:00:07]} d5 {[%emt 0:01:09]} 4. cxd5 {[%emt 0:00:06]} exd5 {[%emt 0:01:27]} 5. e3 {[%emt 0:00:14]} Bd6 {[%emt 0:04:36]} 6. Bxd6 {[%emt 0:00:34]} Qxd6 {[%emt 0:00:08]} 7. Bd3 {[%emt 0:00:15]} O-O {[%emt 0:01:19]} 8. Nc3 {[%emt 0:00:16]} Re8 {[%emt 0:02:29]} 9. h3 {[%emt 0:08:16]} c6 {[%emt 0:03:59]} 10. Qc2 {[%emt 0:01:33]} Nbd7 {[%emt 0:03:38]} 11. Nf3 {[%emt 0:04:57]} Nf8 {[%emt 0:04:57]} 12. O-O {[%emt 0:03:27]} Ng6 {[%emt 0:02:28]} 13. Rab1 {[%emt 0:01:24]} Bd7 {[%emt 0:16:49]} 14. b4 {[%emt 0:01:31]} a6 {[%emt 0:01:04]} 15. Na4 {[%emt 0:04:37] D35: Queen's Gambit Declined: Exchange Variation.} Rad8 {[%emt 0:02:47]} (15... Ne4 $14) 16. Nc5 $16 {[%emt 0:01:04]} Bc8 {[%emt 0:00:59]} 17. a4 {[%emt 0:01:49] White is better.} Nd7 {[%emt 0:02:26]} 18. Bf5 {[%emt 0:10:27]} Qf6 {[%emt 0:10:41][%cal Od7e5]} 19. Bxd7 {[%emt 0:03:11] White is more active.} (19. Rfc1 {keeps more tension.} Re7 20. Nxd7 Bxd7 21. Bxd7 Rexd7 22. b5) 19... Bxd7 {[%emt 0:00:05]} 20. Nxd7 {[%emt 0:00:27]} Rxd7 {[%emt 0:00:04]} 21. b5 {[%emt 0:00:18]} axb5 {[%emt 0:00:27]} 22. axb5 {[%emt 0:00:02]} h6 {[%emt 0:08:15]} 23. Rfc1 {[%emt 0:01:06][%cal Rb5c6,Bf1c1,Bc1a1,Ba1a7][%mdl 32] [#]} Rd6 $146 {[%emt 0:04:30]} ({Predecessor:} 23... Rc8 24. Qd3 Rdc7 25. Rc5 Qd6 26. bxc6 bxc6 27. Qa6 f5 28. g3 Qe6 {1-0 (41) Wilde,P (2245)-Ehrlich,T (1999) Germany 2010}) 24. bxc6 {[%emt 0:01:57]} bxc6 {[%emt 0:00:02]} 25. Rb7 {[%emt 0:04:32]} Rc8 {[%emt 0:05:57]} 26. Ra1 {[%emt 0:03:36]} Re6 {[%emt 0:03:44]} 27. Raa7 {[%emt 0:01:33]} Ne7 $2 {[%emt 0:01:02] A mistake that costs the game.} (27... Re7 $16 28. Rxe7 Nxe7) 28. Ne5 $18 {[%emt 0:03:14]} Re8 {[%emt 0:03:13]} 29. Qc5 {[%emt 0:00:57]} h5 {[%emt 0:02:33]} 30. Qb4 {[%emt 0:08:47] [#] Strongly threatening Rb8.} Kh7 {[%emt 0:04:48]} 31. Qb1+ {[%emt 0:00:29]} g6 {[%emt 0:01:10]} (31... Qf5 $142 32. Nxf7 Qxb1+ 33. Rxb1 Nc8) 32. Rb8 {[%emt 0:01:42]} Rxb8 {[%emt 0:01:50]} 33. Qxb8 {[%emt 0:00:03]} g5 $2 {[%emt 0:03:36] [#]} (33... Qh8 34. Qxh8+ Kxh8 35. Nxf7+ Kg8) 34. Nd7 {[%emt 0:04:57]} Qh8 {[%emt 0:00:06]} 35. Qxh8+ {[%emt 0:01:29]} Kxh8 {[%emt 0:00:02]} 36. Nc5 {[%emt 0:00:07]} Nc8 {[%emt 0:00:06]} 37. Rxf7 {[%emt 0:00:16]} ({Weaker is} 37. Nxe6 Nxa7 38. Nxg5 Kg7 $18) 37... Re8 {[%emt 0:00:12]} 38. Rf5 {[%emt 0:00:34] Weighted Error Value: White=0.31/Black=0.29 (precise)} 1-0